bitfinex/quotes_SOLUSD_20260304
["timestamp","ask_amount","ask_price","bid_price","bid_amount"]
[1772586542411,11.49464924,86.997,86.97,5.43964654]
[1772586542707,15.99464924,86.997,86.97,5.43964654]
[1772586542913,4.5,86.996,86.971,11.49808556]
[1772586543213,4.5,86.996,86.96,5.43964654]
[1772586544109,4.5,86.996,86.948,0.28432314]
[1772586544340,4.5,86.994,86.96,5.43964654]
[1772586544892,4.5,86.994,86.97,5.43964654]
[1772586545101,4.5,87.018,86.98,5.43964654]
[1772586545327,4.5,87.014,86.98,5.43964654]
[1772586546517,57.44885843,87.034,86.95,5.72396968]
[1772586546518,11.49202376,87.017,86.99,5.43964654]
[1772586547203,15.99202376,87.017,86.99,5.43964654]
[1772586547400,4.5,87.037,87.0,5.43964654]
[1772586548513,40.21185904,87.039,87.0,5.43964654]
[1772586548514,4.5,87.035,87.001,11.49412075]
[1772586548898,4.5,87.035,87.01,5.43964654]
[1772586549297,4.47540975,87.033,86.974,0.04918049]
[1772586549513,4.47540975,87.019,86.97,5.43964654]
[1772586550020,4.47540975,87.009,86.97,5.43964654]
[1772586551298,4.47540975,87.007,86.97,5.43964654]
[1772586552606,4.47540975,87.007,86.971,11.49808556]
[1772586553426,4.47540975,87.005,86.971,11.49808556]
[1772586553609,5.43964654,87.02,86.972,0.04918049]
[1772586553915,45.93813726,87.074,87.01,5.43964654]
[1772586553916,11.48922528,87.039,87.01,5.43964654]
[1772586554118,4.47540975,87.038,87.01,5.43964654]
[1772586555724,4.47540975,87.036,87.0,5.43964654]
[1772586556421,4.47540975,87.036,87.0,12.83964654]
[1772586557019,4.47540975,87.036,87.01,5.43964654]
[1772586557224,4.47540975,87.036,87.0,12.83964654]
[1772586557528,11.48936659,87.037,87.0,12.83964654]
[1772586557529,11.48778274,87.049,87.02,5.43964654]
[1772586557826,4.47540975,87.054,87.021,11.49147906]
[1772586558033,4.47540975,87.054,87.02,5.43964654]
[1772586558034,4.47540975,87.049,87.0,7.4]
[1772586558223,4.47540975,87.049,87.001,11.49412075]
[1772586558401,4.47540975,87.049,87.01,5.43964654]
[1772586558607,4.47540975,87.049,87.02,5.43964654]
[1772586559104,11.48699098,87.055,87.03,5.43964654]
[1772586559362,4.47540975,87.054,87.02,5.43964654]
[1772586559820,11.48725489,87.053,87.021,11.49147906]
[1772586560025,4.47540975,87.052,87.02,5.43964654]
[1772586560410,4.47540975,87.049,86.992,0.04918049]
[1772586560938,4.47540975,87.049,87.01,5.43964654]
[1772586561604,4.47540975,87.049,87.02,5.43964654]
[1772586561827,15.96331261,87.049,87.001,0.04918049]
[1772586562038,15.96331261,87.049,87.02,5.43964654]
[1772586562321,4.47540975,87.048,87.02,5.43964654]
[1772586562904,4.47540975,87.058,87.002,29.01903798]
[1772586563102,11.48593547,87.063,87.03,5.43964654]
[1772586563103,4.47540975,87.062,87.03,5.43964654]
[1772586564040,11.48619933,87.061,87.04,5.43964654]
[1772586564205,11.48514396,87.069,87.04,5.43964654]
[1772586564401,4.47540975,87.068,87.04,5.43964654]
[1772586564604,4.47540975,87.068,87.021,28.72862705]
[1772586564605,4.47540975,87.068,87.02,5.43964654]
[1772586566525,4.47540975,87.049,87.02,7.4]
[1772586566727,4.47540975,87.049,87.01,5.43964654]
[1772586567706,4.47540975,87.047,87.01,5.43964654]
[1772586568512,4.47540975,87.047,87.002,11.49391787]
[1772586568717,4.47540975,87.039,87.0,5.43964654]
[1772586568916,4.47540975,87.039,87.001,11.49412075]
[1772586569309,4.47540975,87.039,87.0,5.43964654]
[1772586570215,40.21232104,87.038,87.0,5.43964654]
[1772586570415,4.47540975,87.037,87.0,5.43964654]
[1772586571429,4.47540975,87.037,86.995,11.49487063]
[1772586571617,4.47540975,87.037,87.0,5.43964654]
[1772586571812,4.47540975,87.037,87.0,12.83964654]
[1772586572415,4.47540975,87.035,87.0,24.3338581]
[1772586572822,4.47540975,87.035,87.0,12.83964654]
[1772586574131,4.47540975,87.033,87.0,12.83964654]
[1772586574354,4.47540975,87.033,87.001,11.49412075]
[1772586574633,4.47540975,87.033,87.0,12.83964654]
[1772586575126,4.47540975,87.033,87.0,24.33378025]
[1772586575328,45.92787272,87.094,87.021,0.04918049]
[1772586575329,4.47540975,87.068,87.021,0.04918049]
[1772586575527,4.47540975,87.059,87.02,5.43964654]
[1772586576122,4.47540975,87.057,87.02,16.93115201]
[1772586576317,4.47540975,87.057,87.02,5.43964654]
[1772586576523,4.47540975,87.057,87.01,16.93256133]
[1772586577713,4.47540975,87.057,87.01,24.33256133]
[1772586578533,4.47540975,87.049,87.01,7.4]
[1772586578736,4.47540975,87.039,86.991,11.49544205]
[1772586579835,4.47540975,87.037,86.991,11.49544205]
[1772586580535,4.47540975,87.037,87.001,0.04918049]
[1772586580922,4.47540975,87.037,87.0,5.43964654]
[1772586582237,4.47540975,87.035,87.0,5.43964654]
[1772586582740,4.47540975,87.035,87.0,12.83964654]
[1772586583638,4.47540975,87.035,87.0,24.3338558]
[1772586583840,4.47540975,87.035,87.0,24.38303629]
[1772586584138,11.48976262,87.034,87.0,53.11866847]
[1772586584741,11.48976262,87.034,87.001,0.04918049]
[1772586585443,4.47540975,87.074,87.021,0.04918049]
[1772586585737,4.47540975,87.067,87.02,5.43964654]
[1772586585941,4.47540975,87.067,87.01,0.04918049]
[1772586585942,4.47540975,87.067,87.03,5.43964654]
[1772586586241,11.48527587,87.068,87.004,0.28432314]
[1772586586242,4.47540975,87.065,87.021,11.49143387]
[1772586586440,4.47540975,87.065,87.03,5.43964654]
[1772586586632,4.47540975,87.065,87.02,5.43964654]
[1772586587141,4.47540975,87.065,87.02,16.9311603]
[1772586587343,4.47540975,87.065,87.03,5.43964654]
[1772586587644,4.47540975,87.065,87.02,16.9311603]
[1772586587945,4.47540975,87.065,87.04,5.43964654]
[1772586588331,11.48580354,87.064,87.041,11.48883859]
[1772586588640,11.48580354,87.064,87.04,5.43964654]
[1772586588831,4.49316974,87.063,87.04,5.43964654]
[1772586589230,4.49316974,87.063,87.004,4.84320646]
[1772586589231,1.04917074,87.125,87.054,0.28432314]
[1772586589424,1.04917074,87.125,87.1,5.43964654]
[1772586589425,11.47855232,87.119,87.1,5.43964654]
[1772586589628,1.04917074,87.125,87.11,5.43964654]
[1772586589839,0.1,87.13,87.11,5.43964654]
[1772586590041,0.1,87.13,87.12,5.43964654]
[1772586590231,0.1,87.15,87.121,40.17401085]
[1772586590432,4.5,87.184,87.14,5.43964654]
[1772586590744,4.5,87.184,87.121,40.17401085]
[1772586590745,4.5,87.184,87.15,5.43964654]
[1772586591160,4.5,87.179,87.14,5.43964654]
[1772586591447,4.5,87.225,87.17,5.43964654]
[1772586591649,4.5,87.223,87.19,5.43964654]
[1772586591837,4.5,87.209,87.17,5.43964654]
[1772586592040,4.5,87.209,87.18,5.43964654]
[1772586592248,4.5,87.209,87.15,5.43964654]
[1772586592249,4.5,87.223,87.19,5.43964654]
[1772586592549,4.5,87.221,87.18,5.43964654]
[1772586592749,4.5,87.189,87.123,0.28432314]
[1772586593042,4.5,87.179,87.13,5.43964654]
[1772586593443,4.5,87.171,87.13,5.43964654]
[1772586594240,4.5,87.171,87.116,0.28432314]
[1772586594441,4.5,87.127,87.08,5.43964654]
[1772586594647,11.47638185,87.136,87.1,5.43964654]
[1772586594828,4.5,87.136,87.1,5.43964654]
[1772586595034,4.5,87.156,87.12,5.43964654]
[1772586595354,4.5,87.129,87.08,5.43964654]
[1772586595536,4.5,87.129,87.09,5.43964654]
[1772586596433,86.05261301,87.156,87.1,5.43964654]
[1772586596434,4.5,87.143,87.1,5.43964654]
[1772586596651,4.5,87.166,87.091,40.18784948]
[1772586596874,4.5,87.159,87.12,5.43964654]
[1772586597050,4.5,87.159,87.103,3.69383402]
[1772586597051,4.5,87.159,87.11,5.43964654]
[1772586597858,4.5,87.159,87.093,3.69383402]
[1772586597859,4.5,87.159,87.13,5.43964654]
[1772586598046,4.5,87.159,87.11,5.43964654]
[1772586598633,11.47341609,87.158,87.12,5.43964654]
[1772586598853,4.5,87.157,87.12,5.43964654]
[1772586599253,4.5,87.157,87.095,40.18600378]
[1772586599254,4.78432314,87.179,87.13,5.43964654]
[1772586599469,4.5,87.179,87.13,5.43964654]
[1772586599966,4.5,87.179,87.14,5.43964654]
[1772586600333,4.5,87.179,87.13,5.43964654]
[1772586600538,11.4685475,87.195,87.1,5.43964654]
[1772586600539,4.5,87.149,87.1,5.42027503]
[1772586600752,4.5,87.139,87.1,5.42027503]
[1772586601059,11.47473263,87.148,87.11,5.42027503]
[1772586601240,4.5,87.147,87.11,5.42027503]
[1772586601636,4.5,87.147,87.083,3.69383402]
[1772586601637,4.5,87.139,87.09,5.42027503]
[1772586601836,4.5,87.139,87.059,4.82477569]
[1772586601837,4.5,87.139,87.061,11.48619933]
[1772586602039,4.5,87.109,87.06,5.42027503]
[1772586602240,5.42027503,87.09,87.05,5.42027503]
[1772586602457,3.69383402,87.12,87.01,0.2]
[1772586602458,4.5,87.059,87.01,0.2]
[1772586602641,143.5857379,87.056,86.96,28.74885004]
[1772586602847,5.42027503,87.04,86.99,5.42027503]
[1772586603040,4.5,87.049,87.02,5.42027503]
[1772586603249,11.48633126,87.06,87.02,5.42027503]
[1772586603560,11.48633126,87.06,87.0,5.42027503]
[1772586603561,4.5,87.049,87.0,5.42027503]
[1772586603759,4.5,87.049,87.01,5.42027503]
[1772586604059,4.5,87.049,87.0,5.42027503]
[1772586604446,4.5,87.049,87.01,5.42027503]
[1772586604847,4.5,87.047,87.011,11.49279976]
[1772586605750,4.5,87.047,87.004,11.49365803]
[1772586606062,4.5,87.047,87.01,5.42027503]
[1772586606865,11.48791471,87.048,87.0,5.42027503]
[1772586606866,4.5,87.039,87.0,5.42027503]
[1772586607063,4.5,87.037,87.001,11.49412075]
[1772586608362,57.42421874,87.072,87.001,11.49412075]
[1772586608363,4.78432314,87.059,87.01,5.42027503]
[1772586608567,4.5,87.058,87.01,5.42027503]
[1772586608945,4.5,87.049,87.01,5.42027503]
[1772586609663,4.5,87.047,87.011,11.49279976]
[1772586612158,4.5,87.047,87.011,40.22479916]
[1772586612663,4.5,87.045,87.011,11.49279976]
[1772586613362,4.5,87.039,87.0,28.73557875]
[1772586613547,5.42027503,87.02,86.98,5.42027503]
[1772586613751,4.5,87.019,86.98,5.42027503]
[1772586614146,4.5,87.019,86.97,5.42027503]
[1772586614346,40.21647956,87.029,86.963,40.24700159]
[1772586614347,11.49042273,87.029,86.98,5.42027503]
[1772586614565,4.5,87.028,86.99,5.42027503]
[1772586615862,102.5,87.07,86.985,11.49610702]
[1772586615863,4.5,87.026,86.985,11.49610702]
[1772586616066,4.5,87.026,86.99,5.42027503]
[1772586617166,11.48912301,87.039,87.0,5.42027503]
[1772586617767,4.5,87.039,87.001,11.49412075]
[1772586618280,57.42151551,87.076,87.001,11.49412075]
[1772586618281,4.5,87.089,87.031,0.28432314]
[1772586618660,4.5,87.089,87.013,3.69383402]
[1772586618661,4.5,87.079,87.04,5.42027503]
[1772586618861,4.5,87.079,87.05,5.42027503]
[1772586619064,4.5,87.079,87.04,5.42027503]
[1772586619572,40.18554239,87.096,87.05,5.42027503]
[1772586619573,4.5,87.09,87.05,5.42027503]
[1772586619748,4.5,87.089,87.051,11.48751881]
[1772586619953,4.5,87.089,87.051,40.20631583]
[1772586620554,4.5,87.089,87.06,5.42027503]
[1772586621768,4.5,87.111,87.08,5.42027503]
[1772586622462,4.5,87.111,87.07,5.42027503]
[1772586622669,4.5,87.111,87.08,5.42027503]
[1772586623570,4.5,87.111,87.07,5.42027503]
[1772586623874,4.5,87.111,87.062,0.28432314]
[1772586623875,4.5,87.109,87.08,5.42027503]
[1772586624174,4.5,87.109,87.07,5.42027503]
[1772586624773,4.5,87.109,87.08,5.42027503]
[1772586624967,4.5,87.142,87.1,5.42027503]
[1772586625173,4.5,87.142,87.11,5.42027503]
[1772586626056,5.42027503,87.15,87.063,91.88748376]
[1772586626057,4.5,87.129,87.08,5.42027503]
[1772586626374,4.5,87.129,87.09,5.42027503]
[1772586626675,4.5,87.129,87.08,5.42027503]
[1772586626884,5.42027503,87.12,87.08,5.42027503]
[1772586627067,4.5,87.119,87.074,40.19569561]
[1772586627251,4.5,87.119,87.074,11.48448446]
[1772586627964,4.5,87.117,87.074,11.48448446]
[1772586629972,4.5,87.115,87.074,11.48448446]
[1772586630167,4.5,87.115,87.07,5.42027503]
[1772586630371,4.5,87.109,87.071,11.48488015]
[1772586631473,4.5,87.109,87.065,11.48554844]
[1772586631671,4.5,87.109,87.06,5.42027503]
[1772586631884,4.5,87.109,87.042,28.7216905]
[1772586631885,4.5,87.088,87.051,11.48751881]
[1772586632175,4.5,87.088,87.06,5.42027503]
[1772586633066,4.5,87.102,87.06,5.42027503]
[1772586633269,4.5,87.099,87.06,5.42027503]
[1772586634279,4.5,87.089,87.037,3.69383402]
[1772586634488,4.5,87.089,87.06,5.42027503]
[1772586634785,4.5,87.089,87.038,0.28432314]
[1772586634980,4.5,87.089,87.06,5.42027503]
[1772586636283,5.42027503,87.11,87.07,5.42027503]
[1772586636486,5.42027503,87.11,87.061,11.48619933]
[1772586636487,4.5,87.124,87.062,0.28432314]
[1772586636781,4.5,87.124,87.09,5.42027503]
[1772586638977,4.5,87.122,87.091,11.48224271]
[1772586639881,4.5,87.119,87.07,5.42027503]
[1772586640079,4.5,87.109,87.06,16.90655862]
[1772586640389,4.5,87.099,87.056,11.48681779]
[1772586640563,5.42027503,87.07,87.005,9.53192867]
[1772586640763,5.42027503,87.1,87.0,5.42027503]
[1772586640764,4.5,87.049,87.0,5.42027503]
[1772586640957,4.5,87.049,86.962,45.99666932]
[1772586640958,4.5,87.029,86.992,11.49519401]
[1772586642791,4.5,87.029,86.955,4.82477569]
[1772586642792,4.5,87.029,86.986,0.28432314]
[1772586642987,4.5,87.029,86.985,11.49612162]
[1772586643170,4.5,87.027,86.981,40.23867281]
[1772586644186,4.5,87.027,86.99,5.42027503]
[1772586645976,4.5,87.027,86.991,11.49544205]
[1772586646177,9.92027503,87.05,87.01,5.42027503]
[1772586646377,4.5,87.048,87.01,5.42027503]
[1772586646785,4.5,87.048,87.0,5.42027503]
[1772586650273,4.5,87.046,86.994,0.28432314]
[1772586650474,4.5,87.046,87.0,5.42027503]
[1772586650779,4.5,87.039,87.0,5.42027503]
[1772586652378,4.5,87.037,87.001,11.49412075]
[1772586653189,4.5,87.037,87.01,5.42027503]
[1772586653392,4.5,87.037,87.001,40.22942264]
[1772586653597,4.5,87.095,87.03,5.42027503]
[1772586653792,4.5,87.079,87.04,5.42027503]
[1772586654493,4.5,87.077,87.041,11.48883859]
[1772586654995,4.5,87.049,87.005,29.01830394]
[1772586655183,5.42027503,87.05,87.01,5.42027503]
[1772586655677,5.42027503,87.06,87.01,5.42027503]
[1772586656804,40.2026212,87.059,87.011,11.49279976]
[1772586657293,4.37098619,87.049,87.001,4.54386715]
[1772586657492,4.37098619,87.049,87.0,5.42027503]
[1772586660302,4.37098619,87.039,86.991,3.97815716]
[1772586660502,4.37098619,87.039,86.991,0.28432314]
[1772586660808,45.92555344,87.098,86.991,0.28432314]
[1772586660809,4.5,87.088,87.034,0.28432314]
[1772586661096,4.5,87.088,87.07,5.42027503]
[1772586661299,4.5,87.088,87.04,4.25954401]
[1772586661480,4.5,87.088,87.05,5.42027503]
[1772586661881,4.5,87.088,87.06,5.42027503]
[1772586662098,4.5,87.088,87.05,5.42027503]
[1772586662592,4.37098619,87.086,87.06,5.42837824]
[1772586662906,45.90987831,87.128,87.049,11.48778274]
[1772586662907,4.37098619,87.096,87.07,5.42837824]
[1772586663199,11.47987004,87.109,87.05,5.42837824]
[1772586663200,4.37098619,87.108,87.08,5.42837824]
[1772586664197,4.37098619,87.158,87.101,4.25954401]
[1772586664375,4.37098619,87.158,87.12,5.42837824]
[1772586664694,4.37098619,87.156,87.12,5.42837824]
[1772586665687,4.37098619,87.156,87.121,11.47828881]
[1772586666076,4.37098619,87.156,87.13,5.42837824]
[1772586666281,11.47354773,87.157,87.1,5.42837824]
[1772586666282,4.37098619,87.149,87.1,5.42837824]
[1772586666685,4.37098619,87.139,87.092,11.4820771]
[1772586666987,4.37098619,87.139,87.1,5.42837824]
[1772586668900,4.37098619,87.137,87.101,11.48092444]
[1772586669607,4.37098619,87.137,87.1,5.42837824]
[1772586669993,4.37098619,87.137,87.1,16.90941684]
[1772586670900,11.47631289,87.136,87.1,16.90941684]
[1772586671091,4.37098619,87.135,87.101,4.25954401]
[1772586671699,4.37098619,87.135,87.11,5.42837824]
[1772586671891,33.05794906,87.148,87.111,4.25954401]
[1772586672092,11.47534764,87.144,87.111,4.25954401]
[1772586672288,4.37098619,87.143,87.111,4.25954401]
[1772586673212,4.37098619,87.143,87.12,5.42837824]
[1772586673512,4.37098619,87.143,87.112,11.47947469]
[1772586673717,4.37098619,87.141,87.112,11.47947469]
[1772586675618,4.37098619,87.169,87.131,4.25954401]
[1772586675797,5.52837824,87.18,87.131,4.25954401]
[1772586675798,15.84308604,87.168,87.14,5.42837824]
[1772586675996,4.37098619,87.167,87.14,5.42837824]
[1772586676200,0.1,87.18,87.112,11.47947469]
[1772586676201,4.37098619,87.177,87.15,5.42837824]
[1772586676496,4.37098619,87.176,87.141,4.25954401]
[1772586676691,4.37098619,87.176,87.14,5.42837824]
[1772586677408,5.42837824,87.17,87.12,5.42837824]
[1772586677606,4.65530933,87.169,87.12,5.42837824]
[1772586677813,4.37098619,87.167,87.121,11.47828881]
[1772586678811,4.34736476,87.159,87.116,11.47889419]
[1772586680115,4.45707011,87.149,87.111,11.47948822]
[1772586680495,4.45707011,87.149,87.102,11.48079263]
[1772586680916,4.45707011,87.139,87.09,9.81252559]
[1772586681110,4.45707011,87.139,87.091,11.48224271]
[1772586681422,4.45707011,87.129,87.085,11.48291639]
[1772586683221,4.45707011,87.155,87.111,4.38414735]
[1772586683718,4.45707011,87.155,87.12,9.81252559]
[1772586683930,4.45707011,87.155,87.121,4.38414735]
[1772586685504,4.45707011,87.155,87.13,5.42837824]
[1772586685905,11.47394267,87.154,87.123,4.38414735]
[1772586687219,4.45707011,87.154,87.124,11.47789357]
[1772586689519,15.93103404,87.154,87.125,4.38414735]
[1772586689829,4.45707011,87.168,87.14,9.81252559]
[1772586690300,4.45707011,87.168,87.13,9.81252559]
[1772586690722,4.45707011,87.168,87.13,4.38414735]
[1772586691815,4.45707011,87.166,87.131,11.47697145]
[1772586692124,40.15281011,87.167,87.132,4.38414735]
[1772586692331,0.1,87.18,87.131,11.47697145]
[1772586692332,0.1,87.18,87.161,4.38414735]
[1772586692521,0.1,87.18,87.16,5.42837824]
[1772586692522,0.1,87.2,87.171,4.38414735]
[1772586692708,11.46276321,87.239,87.19,5.42837824]
[1772586693012,4.45707011,87.231,87.2,5.42837824]
[1772586693616,4.45707011,87.231,87.193,4.38414735]
[1772586694029,11.46394589,87.23,87.195,4.38414735]
[1772586694705,4.45707011,87.219,87.17,5.42837824]
[1772586694909,4.45707011,87.209,87.171,4.38414735]
[1772586695526,0.1,87.24,87.181,4.38414735]
[1772586695711,0.1,87.24,87.211,4.38414735]
[1772586696117,0.1,87.24,87.212,11.46631197]
[1772586696313,4.45707011,87.239,87.19,5.42837824]
[1772586696531,5.52837824,87.24,87.187,15.85374607]
[1772586696532,4.45707011,87.229,87.187,15.85374607]
[1772586697426,4.45707011,87.219,87.181,11.47036689]
[1772586698031,4.45707011,87.217,87.178,11.47078391]
[1772586698332,4.45707011,87.217,87.179,4.38414735]
[1772586698717,4.45707011,87.217,87.181,4.38414735]
[1772586699117,11.46552317,87.218,87.181,4.38414735]
[1772586700528,11.46552317,87.218,87.18,5.42837824]
[1772586700529,15.92259328,87.218,87.183,4.38414735]
[1772586700830,4.45707011,87.217,87.178,11.47075404]
[1772586701036,4.45707011,87.209,87.164,4.66847049]
[1772586701236,4.45707011,87.209,87.171,4.38414735]
[1772586702233,4.45707011,87.217,87.171,4.38414735]
[1772586702435,11.4668379,87.208,87.171,15.8557704]
[1772586702615,4.45707011,87.207,87.171,4.38414735]
[1772586702822,11.4668379,87.208,87.16,4.38414735]
[1772586702823,4.45707011,87.199,87.16,4.38414735]
[1772586703026,4.45707011,87.199,87.161,11.47302119]
[1772586703335,4.45707011,87.199,87.162,4.38414735]
[1772586703516,5.42837824,87.19,87.162,4.38414735]
[1772586703717,4.45707011,87.189,87.162,4.38414735]
[1772586704140,4.45707011,87.189,87.142,11.47548502]
[1772586704324,4.45707011,87.189,87.142,15.85963237]
[1772586704523,4.45707011,87.179,87.143,4.38414735]
[1772586704725,4.45707011,87.169,87.134,11.47654048]
[1772586705034,4.45707011,87.169,87.134,15.86068783]
[1772586705243,4.45707011,87.169,87.134,4.38414735]
[1772586705544,4.45707011,87.169,87.124,11.47777593]
[1772586705545,5.42837824,87.16,87.125,4.38414735]
[1772586706018,4.45707011,87.159,87.125,4.38414735]
[1772586706213,4.45707011,87.149,87.104,4.38414735]
[1772586706418,5.42837824,87.13,87.104,4.38414735]
[1772586706641,11.4772349,87.129,87.104,4.38414735]
[1772586706825,11.4772349,87.129,87.1,11.48105581]
[1772586706826,4.45707011,87.139,87.106,4.38414735]
[1772586707026,11.47604948,87.138,87.106,4.38414735]
[1772586707227,44.6232433,87.138,87.106,4.38414735]
[1772586707420,4.45707011,87.137,87.106,4.38414735]
[1772586708632,4.39602514,87.129,87.097,26.66793012]
[1772586708833,9.82440338,87.12,87.097,26.66793012]
[1772586709025,4.39602514,87.119,87.087,11.48275793]
[1772586709339,4.39602514,87.119,87.081,11.4834737]
[1772586709540,4.39602514,87.119,87.082,4.1072322]
[1772586710944,11.47746387,87.128,87.091,4.1072322]
[1772586711249,4.39602514,87.136,87.101,4.1072322]
[1772586711424,4.39602514,87.129,87.101,4.1072322]
[1772586712446,4.39602514,87.136,87.101,4.1072322]
[1772586713247,5.42837824,87.13,87.101,4.1072322]
[1772586713642,9.82440338,87.13,87.101,4.1072322]
[1772586713849,4.39602514,87.129,87.089,4.1072322]
[1772586714046,4.39602514,87.119,87.084,11.48315567]
[1772586714347,4.39602514,87.109,87.073,15.59184855]
[1772586715125,11.48000183,87.108,87.073,15.59184855]
[1772586715342,4.39602514,87.107,87.067,11.48528677]
[1772586715723,4.39602514,87.107,87.067,15.59251897]
[1772586716046,4.39602514,87.099,87.054,4.1072322]
[1772586716344,4.39602514,87.089,87.054,4.1072322]
[1772586717449,11.48263825,87.088,87.056,4.1072322]
[1772586717953,4.39602514,87.089,87.056,4.1072322]
[1772586718741,11.48263825,87.088,87.056,4.1072322]
[1772586719036,4.39602514,87.089,87.056,4.1072322]
[1772586719743,4.39602514,87.089,87.061,4.1072322]
[1772586719947,11.48000183,87.108,87.071,4.1072322]
[1772586720253,11.47855232,87.119,87.081,4.1072322]
[1772586720756,4.39602514,87.118,87.081,4.1072322]
[1772586721258,11.47764857,87.126,87.091,4.1072322]
[1772586721641,102.5,87.141,87.062,3.69383402]
[1772586721642,4.39602514,87.147,87.111,4.1072322]
[1772586722126,4.39602514,87.145,87.111,4.1072322]
[1772586724150,4.39602514,87.143,87.108,11.47995848]
[1772586724651,4.39602514,87.139,87.108,11.47995848]
[1772586725249,4.39602514,87.139,87.108,15.58719068]
[1772586725630,4.39602514,87.139,87.109,4.1072322]
[1772586725831,11.47525934,87.144,87.111,4.1072322]
[1772586726155,4.39602514,87.143,87.112,11.47947469]
[1772586726838,4.39602514,87.139,87.111,4.1072322]
[1772586727230,4.39602514,87.139,87.111,15.58674912]
[1772586727628,4.39602514,87.139,87.091,4.1072322]
[1772586727832,5.42239634,87.12,87.082,4.1072322]
[1772586728040,4.39602514,87.119,87.082,4.1072322]
[1772586728332,11.47868408,87.118,87.084,4.1072322]
[1772586729536,4.39602514,87.117,87.085,11.48303381]
[1772586729834,4.39602514,87.117,87.084,4.1072322]
[1772586730041,45.89894169,87.148,87.084,4.1072322]
[1772586730042,11.47662114,87.134,87.091,4.1072322]
[1772586730243,40.1680619,87.134,87.091,4.1072322]
[1772586730540,4.39602514,87.129,87.091,4.1072322]
[1772586731627,11.47736663,87.128,87.093,4.1072322]
[1772586733447,11.47736663,87.128,87.098,4.1072322]
[1772586733634,11.47736663,87.128,87.092,40.18738804]
[1772586733635,11.47618118,87.137,87.103,4.1072322]
[1772586733841,4.39602514,87.136,87.103,4.1072322]
[1772586735558,4.39602514,87.129,87.103,4.1072322]
[1772586736047,4.39602514,87.129,87.104,11.48052902]
[1772586736732,4.39602514,87.129,87.103,4.1072322]
[1772586736929,4.39602514,87.129,87.103,15.58785137]
[1772586737133,4.39602514,87.129,87.091,4.1072322]
[1772586737329,4.39602514,87.129,87.092,4.1072322]
[1772586737941,4.39602514,87.119,87.085,11.48297971]
[1772586738753,4.39602514,87.119,87.086,4.17334642]
[1772586739136,11.47868408,87.118,87.087,11.4827701]
[1772586739478,4.05424605,87.149,87.101,4.17334642]
[1772586741032,4.05424605,87.149,87.111,4.38472303]
[1772586741356,4.21477181,87.139,87.105,4.38472303]
[1772586742051,4.21477181,87.129,87.084,4.38472303]
[1772586742555,97.53522741,87.148,87.084,4.38472303]
[1772586742556,4.21477181,87.119,87.084,4.38472303]
[1772586743054,4.21477181,87.119,87.079,11.48376625]
[1772586743237,4.21477181,87.128,87.091,4.38472303]
[1772586743552,4.21477181,87.128,87.071,11.48488015]
[1772586743553,4.21477181,87.119,87.082,4.38472303]
[1772586744060,4.21477181,87.109,87.082,4.38472303]
[1772586744836,4.21477181,87.109,87.071,11.48488015]
[1772586745158,4.21477181,87.099,87.063,4.38472303]
[1772586745358,4.21477181,87.097,87.063,4.38472303]
[1772586746350,4.21477181,87.095,87.063,4.38472303]
[1772586746562,4.21477181,87.095,87.064,11.48580354]
[1772586747757,4.21477181,87.095,87.064,15.87052657]
[1772586747961,4.21477181,87.103,87.065,4.38472303]
[1772586748362,15.69556444,87.102,87.067,4.38472303]
[1772586749850,4.21477181,87.101,87.067,4.38472303]
[1772586750362,11.48105625,87.1,87.068,11.48527587]
[1772586750565,11.48105625,87.1,87.069,4.38472303]
[1772586751061,15.69582806,87.1,87.069,4.38472303]
[1772586751257,4.21477181,87.1,87.069,4.38472303]
[1772586751462,4.21477181,87.119,87.071,4.38472303]
[1772586751643,4.21477181,87.119,87.081,4.38472303]
[1772586752160,11.47868408,87.118,87.081,4.38472303]
[1772586752358,4.21477181,87.119,87.091,4.38472303]
[1772586752550,4.21477181,87.119,87.093,4.38472303]
[1772586753359,11.47868408,87.118,87.093,4.38472303]
[1772586753751,4.21477181,87.119,87.093,4.38472303]
[1772586754250,11.47868408,87.118,87.093,4.38472303]
[1772586755266,11.47868408,87.118,87.094,11.48184719]
[1772586756173,15.69345589,87.118,87.094,11.48184719]
[1772586756549,4.21477181,87.117,87.09,11.48233577]
[1772586756865,4.21477181,87.099,87.067,15.8700782]
[1772586757261,11.48131989,87.098,87.067,15.8700782]
[1772586757569,5.42239634,87.08,87.048,4.38472303]
[1772586758953,5.42239634,87.08,87.039,11.48910106]
[1772586758954,5.42239634,87.08,87.04,4.38472303]
[1772586759168,5.42239634,87.06,87.024,4.38472303]
[1772586759480,5.42239634,87.06,87.0,0.2]